[Event "HUN-chT Youth 2019"]
[Site "Budapest"]
[Date "2019.10.28"]
[Round "5.2"]
[White "Losonczi, Marcell"]
[Black "Pasztor, Balazs"]
[Result "*"]
[ECO "C88"]
[WhiteElo "2249"]
[BlackElo "2152"]
[Annotator "NA"]
[PlyCount "25"]
[EventDate "2019.10.26"]
[EventType "team-tourn"]
[EventCountry "HUN"]
[SourceTitle "playchess.com"]
[Source "ChessBase"]
[SourceQuality "1"]
[TimeControl "5400+30"]

1. e4 {[%emt 0:00:00]} e5 {[%emt 0:00:00]} 2. Nf3 {[%emt 0:00:00]} Nc6 {[%emt 0:00:00]} 3. Bb5 {[%emt 0:00:00]} a6 {[%emt 0:00:00]} 4. Ba4 {[%emt 0:00:00]} Nf6 {[%emt 0:00:05]} 5. O-O {[%emt 0:00:02]} Be7 {[%emt 0:00:07]} 6. Re1 {[%emt 0:00:02]} b5 {[%emt 0:00:14]} 7. Bb3 {[%emt 0:00:02]} O-O {[%emt 0:00:35]} 8. a4 {[%emt 0:00:06]} d5 {[%emt 0:00:47]} 9. exd5 {[%emt 0:00:21]} Na5 {[%emt 0:00:14]} 10. Nxe5 {[%emt 0:01:22]} Nxb3 {[%emt 0:00:18]} 11. Nc6 {[%emt 0:02:12]} Bg4 {[%emt 0:01:46]} 12. Nxd8 {[%emt 0:05:39]} Bxd1 {[%emt 0:00:19]} 13. cxb3 {[%emt 0:00:43]} *

[Event "HUN-chT Youth 2019"]
[Site "Budapest"]
[Date "2019.10.28"]
[Round "5.2"]
[White "Tancsa, Tamas"]
[Black "Pasztor, Balazs"]
[Result "0-1"]
[ECO "C88"]
[WhiteElo "2082"]
[BlackElo "2152"]
[Annotator "NA RC"]
[PlyCount "42"]
[EventDate "2019.10.26"]
[EventType "team-tourn"]
[EventCountry "HUN"]
[SourceTitle "playchess.com"]
[Source "ChessBase"]
[SourceQuality "1"]
[TimeControl "5400+30"]

1. e4 {[%emt 0:00:00]} e5 {[%emt 0:00:00]} 2. Nf3 {[%emt 0:00:00]} Nc6 {[%emt 0:00:00]} 3. Bb5 {[%emt 0:00:00]} a6 {[%emt 0:00:00]} 4. Ba4 {[%emt 0:00:00]} Nf6 {[%emt 0:00:05]} 5. O-O {[%emt 0:00:02]} Be7 {[%emt 0:00:07]} 6. Re1 {[%emt 0:00:02]} b5 {[%emt 0:00:14]} 7. Bb3 {[%emt 0:00:02]} O-O {[%emt 0:00:35]} 8. a4 {[%emt 0:00:06]} d5 {[%emt 0:00:47]} 9. exd5 {[%emt 0:00:21]} Na5 {[%emt 0:00:14]} 10. Nxe5 {[%emt 0:01:22]} Nxb3 {[%emt 0:00:18]} 11. Nc6 {[%emt 0:02:12]} Bg4 {[%emt 0:01:46]} 12. Nxd8 {[%emt 0:05:39]} Bxd1 {[%emt 0:00:19]} 13. cxb3 {[%emt 0:00:43]} Bxb3 {[%emt 0:07:17]} 14. Nc6 {[%emt 0:16:07]} Bd6 {[%emt 0:06:25]} 15. Nd4 {[%emt 0:07:45]} Rfe8 {[%emt 0:14:16]} 16. Rf1 {[%emt 0:09:10]} Bc4 {[%emt 0:08:13]} 17. Rd1 {[%emt 0:00:31]} Bd3 {[%emt 0:11:47]} 18. b3 {[%emt 0:13:49]} b4 {[%emt 0:04:09]} 19. Bb2 {[%emt 0:01:40]} Nxd5 {[%emt 0:01:49]} 20. g3 {[%emt 0:00:35]} c5 {[%emt 0:04:50]} 21. Nc6 {[%emt 0:00:33]} a5 {[%emt 0:01:59]} 0-1

[Event "HUN-chT Youth 2019"]
[Site "Budapest"]
[Date "2019.10.28"]
[Round "5.2"]
[White "Lazsadi, Kerka Lilla"]
[Black "Hajdu, Marton Abris"]
[Result "1-0"]
[ECO "A45"]
[WhiteElo "1561"]
[BlackElo "1818"]
[Annotator "NA RC"]
[PlyCount "45"]
[EventDate "2019.10.26"]
[EventType "team-tourn"]
[EventCountry "HUN"]
[SourceTitle "playchess.com"]
[Source "ChessBase"]
[SourceQuality "1"]
[TimeControl "5400+30"]

1. d4 {[%emt 0:00:00]} Nf6 {[%emt 0:00:00]} 2. Bg5 {[%emt 0:00:00]} c6 {[%emt 0:00:53]} 3. Nf3 {[%emt 0:01:01]} d5 {[%emt 0:00:20]} 4. e3 {[%emt 0:00:42]} h6 5. Bxf6 {[%emt 0:00:44]} exf6 {[%emt 0:00:50]} 6. c4 {[%emt 0:00:07]} Be6 {[%emt 0:02:44]} 7. Qb3 {[%emt 0:04:22]} Qc7 {[%emt 0:02:20]} 8. Nc3 {[%emt 0:02:02]} dxc4 {[%emt 0:03:46]} 9. Bxc4 {[%emt 0:01:28]} Bxc4 {[%emt 0:00:14]} 10. Qxc4 {[%emt 0:00:17]} Bd6 {[%emt 0:00:17]} 11. O-O {[%emt 0:04:20]} O-O {[%emt 0:01:31]} 12. Rac1 {[%emt 0:02:06]} Qe7 {[%emt 0:04:11]} 13. Rfe1 {[%emt 0:02:39]} Nd7 {[%emt 0:01:24]} 14. e4 {[%emt 0:05:04]} Rfe8 {[%emt 0:06:33]} 15. Rcd1 {[%emt 0:05:05]} Rad8 {[%emt 0:04:01]} 16. Qd3 {[%emt 0:05:58]} Bb8 {[%emt 0:05:00]} 17. Nh4 {[%emt 0:11:27]} Ne5 {[%emt 0:02:02]} 18. Qh3 {[%emt 0:01:18]} Nc4 {[%emt 0:06:52]} 19. b3 {[%emt 0:02:10]} Nb6 {[%emt 0:03:56]} 20. Nf5 {[%emt 0:03:51]} Qc7 {[%emt 0:00:09]} 21. Re3 {[%emt 0:01:10]} Kh7 {[%emt 0:15:49]} 22. Rg3 {[%emt 0:03:27]} Rg8 {[%emt 0:00:16]} 23. Rxg7+ {[%emt 0:00:44]} 1-0

[Event "HUN-chT Youth 2019"]
[Site "Budapest"]
[Date "2019.10.28"]
[Round "5.3"]
[White "Dibusz, Domonkos"]
[Black "Tancsa, Tamas"]
[Result "*"]
[ECO "C88"]
[WhiteElo "2088"]
[BlackElo "2082"]
[Annotator "NA"]
[PlyCount "26"]
[EventDate "2019.10.26"]
[EventType "team-tourn"]
[EventCountry "HUN"]
[SourceTitle "playchess.com"]
[Source "ChessBase"]
[SourceQuality "1"]
[TimeControl "5400+30"]

1. e4 {[%emt 0:00:00]} e5 {[%emt 0:00:00]} 2. Nf3 {[%emt 0:00:00]} Nc6 {[%emt 0:00:00]} 3. Bb5 {[%emt 0:00:00]} a6 {[%emt 0:00:00]} 4. Ba4 {[%emt 0:00:00]} Nf6 {[%emt 0:00:00]} 5. O-O {[%emt 0:00:00]} Be7 {[%emt 0:00:00]} 6. Re1 {[%emt 0:00:00]} b5 {[%emt 0:00:15]} 7. Bb3 {[%emt 0:00:00]} O-O {[%emt 0:00:10]} 8. h3 {[%emt 0:00:11]} Bb7 {[%emt 0:00:16]} 9. d3 {[%emt 0:00:05]} d6 {[%emt 0:00:19]} 10. a3 {[%emt 0:07:56]} Qd7 {[%emt 0:00:52]} 11. Nbd2 {[%emt 0:02:03]} Rfe8 {[%emt 0:00:56]} 12. Nf1 {[%emt 0:01:51]} h6 {[%emt 0:00:25]} 13. Ng3 {[%emt 0:00:19]} Bf8 {[%emt 0:00:22]} *

[Event "HUN-chT Youth 2019"]
[Site "Budapest"]
[Date "2019.10.28"]
[Round "5.3"]
[White "Nagy, Botond"]
[Black "Kovacs, Kristof"]
[Result "0-1"]
[ECO "C24"]
[WhiteElo "1281"]
[BlackElo "1547"]
[Annotator "NA"]
[PlyCount "64"]
[EventDate "2019.10.26"]
[EventType "team-tourn"]
[EventCountry "HUN"]
[SourceTitle "playchess.com"]
[Source "ChessBase"]
[SourceQuality "1"]
[TimeControl "5400+30"]

1. e4 {[%emt 0:00:00]} e5 {[%emt 0:00:00]} 2. Bc4 {[%emt 0:00:06]} Nf6 {[%emt 0:00:00]} 3. d3 {[%emt 0:00:45]} Nc6 {[%emt 0:00:00]} 4. Nc3 {[%emt 0:00:43]} d6 {[%emt 0:00:17]} 5. Nge2 {[%emt 0:00:55]} Be7 {[%emt 0:00:29]} 6. O-O {[%emt 0:01:04]} O-O {[%emt 0:00:49]} 7. h3 {[%emt 0:01:29]} Be6 {[%emt 0:00:18]} 8. Bb3 {[%emt 0:02:02]} Qd7 {[%emt 0:00:41]} 9. Bxe6 {[%emt 0:03:26]} fxe6 {[%emt 0:00:09]} 10. f4 {[%emt 0:00:29]} Rf7 {[%emt 0:01:36]} 11. Be3 {[%emt 0:01:05]} Raf8 {[%emt 0:00:21]} 12. Qd2 {[%emt 0:02:28]} d5 {[%emt 0:00:53]} 13. exd5 {[%emt 0:04:07]} exd5 {[%emt 0:00:15]} 14. fxe5 {[%emt 0:02:16]} Nxe5 {[%emt 0:00:14]} 15. Bf4 {[%emt 0:01:17]} Bd6 {[%emt 0:04:04]} 16. Qe3 {[%emt 0:03:10]} Nc6 {[%emt 0:01:11]} 17. Bxd6 {[%emt 0:02:42]} Qxd6 {[%emt 0:00:25]} 18. Qg3 {[%emt 0:03:32]} Qc5+ {[%emt 0:01:22]} 19. Kh2 {[%emt 0:01:22]} Nh5 {[%emt 0:01:17]} 20. Qh4 {[%emt 0:05:07]} Rxf1 {[%emt 0:00:42]} 21. Rxf1 {[%emt 0:00:35]} Rxf1 {[%emt 0:00:13]} 22. Qxh5 {[%emt 0:00:40]} Qd6+ {[%emt 0:00:19]} 23. g3 {[%emt 0:01:10]} Ne5 {[%emt 0:01:45]} 24. Kg2 {[%emt 0:01:24]} Rf8 {[%emt 0:01:40]} 25. Qh4 {[%emt 0:03:28]} c5 {[%emt 0:03:43]} 26. Nf4 {[%emt 0:01:49]} d4 {[%emt 0:02:52]} 27. Ne4 {[%emt 0:01:20]} Qb6 {[%emt 0:01:25]} 28. b3 {[%emt 0:01:35]} Qc6 {[%emt 0:01:51]} 29. Qe7 {[%emt 0:00:52]} Ng6 {[%emt 0:00:45]} 30. Ne6 {[%emt 0:04:42]} Nxe7 {[%emt 0:00:19]} 31. N6xc5 {[%emt 0:00:37]} Nd5 {[%emt 0:00:21]} 32. a4 {[%emt 0:00:33]} Nc3 {[%emt 0:00:00]} 0-1

[Event "HUN-chT Youth 2019"]
[Site "Budapest"]
[Date "2019.10.28"]
[Round "5.4"]
[White "Toth, Nikoletta"]
[Black "Kovacs, Gabor Etele"]
[Result "0-1"]
[ECO "D00"]
[WhiteElo "1965"]
[BlackElo "2053"]
[Annotator "NA RC"]
[PlyCount "68"]
[EventDate "2019.10.26"]
[EventType "team-tourn"]
[EventCountry "HUN"]
[SourceTitle "playchess.com"]
[Source "ChessBase"]
[SourceQuality "1"]
[TimeControl "5400+30"]

1. d4 {[%emt 0:00:00]} d5 {[%emt 0:00:00]} 2. Bf4 {[%emt 0:00:00]} Nf6 {[%emt 0:00:00]} 3. e3 {[%emt 0:00:00]} c5 {[%emt 0:00:03]} 4. c3 {[%emt 0:00:00]} Nc6 {[%emt 0:00:38]} 5. Nd2 {[%emt 0:00:08]} Bf5 {[%emt 0:02:15]} 6. Qb3 {[%emt 0:12:01]} Qd7 {[%emt 0:01:21]} 7. Ngf3 {[%emt 0:01:29]} c4 {[%emt 0:00:33]} 8. Qd1 {[%emt 0:00:11]} e6 {[%emt 0:00:59]} 9. Be2 {[%emt 0:00:29]} h6 {[%emt 0:01:06]} 10. O-O {[%emt 0:01:41]} Be7 {[%emt 0:00:52]} 11. Ne5 {[%emt 0:05:18]} Nxe5 {[%emt 0:02:00]} 12. Bxe5 {[%emt 0:02:49]} O-O {[%emt 0:02:14]} 13. Bxf6 {[%emt 0:02:18]} Bxf6 {[%emt 0:01:26]} 14. e4 {[%emt 0:00:11]} Bg6 {[%emt 0:05:12]} 15. e5 {[%emt 0:05:36]} Be7 {[%emt 0:01:33]} 16. f4 {[%emt 0:00:07]} b5 {[%emt 0:04:28]} 17. a3 {[%emt 0:10:08]} a5 {[%emt 0:02:22]} 18. Nf3 {[%emt 0:05:03]} b4 {[%emt 0:13:02]} 19. axb4 {[%emt 0:00:07]} axb4 {[%emt 0:00:11]} 20. Qd2 {[%emt 0:01:32]} Ra4 {[%emt 0:02:36]} 21. g4 {[%emt 0:12:11]} Rfa8 {[%emt 0:02:08]} 22. Rxa4 {[%emt 0:01:36]} Qxa4 {[%emt 0:01:38]} 23. Bd1 {[%emt 0:01:45]} Qa2 {[%emt 0:00:55]} 24. h4 {[%emt 0:19:46]} Rb8 {[%emt 0:01:37]} 25. Rf2 {[%emt 0:01:47]} bxc3 {[%emt 0:09:26]} 26. bxc3 {[%emt 0:00:10]} Qa1 {[%emt 0:00:18]} 27. h5 {[%emt 0:02:39]} Bd3 {[%emt 0:02:43]} 28. Kg2 {[%emt 0:03:44]} Rb1 {[%emt 0:00:02]} 29. Bc2 {[%emt 0:00:22]} Rb2 {[%emt 0:00:44]} 30. Ne1 {[%emt 0:04:52]} Bh4 {[%emt 0:00:22]} 31. Nxd3 {[%emt 0:04:43]} cxd3 {[%emt 0:00:39]} 32. Qxd3 {[%emt 0:01:43]} Bxf2 {[%emt 0:00:12]} 33. Qh7+ {[%emt 0:01:24]} Kf8 {[%emt 0:00:01]} 34. Kxf2 {[%emt 0:00:35]} Qc1 {[%emt 0:00:26]} 0-1

[Event "HUN-chT Youth 2019"]
[Site "Budapest"]
[Date "2019.10.28"]
[Round "5.4"]
[White "Szabo, Akos"]
[Black "Nagy, Levente"]
[Result "1-0"]
[ECO "B31"]
[WhiteElo "1418"]
[BlackElo "2092"]
[Annotator "NA RC"]
[PlyCount "107"]
[EventDate "2019.10.26"]
[EventType "team-tourn"]
[EventCountry "HUN"]
[SourceTitle "playchess.com"]
[Source "ChessBase"]
[SourceQuality "1"]
[TimeControl "5400+30"]

1. e4 {[%emt 0:00:00]} c5 2. Nf3 {[%emt 0:00:00]} Nc6 {[%emt 0:00:12]} 3. Bb5 {[%emt 0:00:05]} g6 {[%emt 0:00:21]} 4. O-O {[%emt 0:00:52]} Bg7 {[%emt 0:00:39]} 5. d3 {[%emt 0:01:04]} Nf6 {[%emt 0:00:47]} 6. Nc3 {[%emt 0:01:22]} O-O {[%emt 0:01:50]} 7. e5 {[%emt 0:02:35]} Ng4 {[%emt 0:03:32]} 8. Bxc6 {[%emt 0:01:55]} bxc6 {[%emt 0:02:31]} 9. Re1 {[%emt 0:00:34]} Qc7 {[%emt 0:05:40]} 10. Bf4 {[%emt 0:01:00]} Qb7 {[%emt 0:02:28]} 11. Rb1 {[%emt 0:00:58]} Nh6 {[%emt 0:06:11]} 12. Be3 {[%emt 0:01:08]} d6 {[%emt 0:02:20]} 13. exd6 {[%emt 0:01:09]} exd6 {[%emt 0:01:27]} 14. Ne4 {[%emt 0:01:10]} Nf5 {[%emt 0:01:27]} 15. Bf4 {[%emt 0:03:34]} Rd8 {[%emt 0:03:58]} 16. Qe2 {[%emt 0:03:24]} Be6 {[%emt 0:06:26]} 17. a3 {[%emt 0:03:24]} a5 {[%emt 0:06:02]} 18. a4 {[%emt 0:00:57]} Ra6 {[%emt 0:00:57]} 19. b3 {[%emt 0:01:22]} Bd5 {[%emt 0:03:54]} 20. c4 {[%emt 0:02:02]} Bxe4 {[%emt 0:01:49]} 21. dxe4 {[%emt 0:01:49]} Nd4 {[%emt 0:02:21]} 22. Qd1 {[%emt 0:01:08]} Rb6 {[%emt 0:02:50]} 23. Re3 {[%emt 0:01:10]} Rd7 {[%emt 0:03:33]} 24. Rd3 {[%emt 0:01:37]} Qb8 {[%emt 0:01:48]} 25. Be3 {[%emt 0:00:56]} Nxf3+ {[%emt 0:05:05]} 26. Qxf3 {[%emt 0:00:52]} Rdb7 {[%emt 0:01:42]} 27. Qd1 {[%emt 0:00:26]} Bf8 {[%emt 0:02:14]} 28. f3 {[%emt 0:02:25]} Rb4 {[%emt 0:02:42]} 29. Bf4 {[%emt 0:02:41]} Rxc4 {[%emt 0:02:01]} 30. Bxd6 {[%emt 0:00:20]} Bxd6 {[%emt 0:00:09]} 31. Rxd6 {[%emt 0:00:18]} Kg7 {[%emt 0:00:30]} 32. Rxc6 {[%emt 0:03:33]} Rxa4 {[%emt 0:03:05]} 33. Rxc5 {[%emt 0:02:19]} Rab4 {[%emt 0:01:03]} 34. Rxa5 {[%emt 0:01:16]} Rxb3 {[%emt 0:00:13]} 35. Rxb3 {[%emt 0:01:01]} Rxb3 {[%emt 0:00:04]} 36. Qa1+ {[%emt 0:00:40]} f6 {[%emt 0:03:20]} 37. Ra7+ {[%emt 0:00:39]} Kh6 {[%emt 0:01:50]} 38. Qc1+ {[%emt 0:01:02]} g5 {[%emt 0:00:13]} 39. Qc7 {[%emt 0:01:23]} Rb1+ {[%emt 0:01:51]} 40. Kf2 {[%emt 0:00:17]} Rb2+ {[%emt 0:00:05]} 41. Kg3 {[%emt 0:00:18]} Qxc7+ {[%emt 0:00:33]} 42. Rxc7 {[%emt 0:00:09]} Kg6 {[%emt 0:00:11]} 43. Rc1 {[%emt 0:01:00]} h5 {[%emt 0:00:57]} 44. Rg1 {[%emt 0:00:53]} Rb3 {[%emt 0:00:45]} 45. Rc1 {[%emt 0:00:55]} Kh6 {[%emt 0:00:48]} 46. Rc6 {[%emt 0:00:09]} Kg7 {[%emt 0:00:29]} 47. Rc7+ {[%emt 0:02:52]} Kg6 {[%emt 0:00:07]} 48. Rc8 {[%emt 0:00:06]} Kg7 {[%emt 0:00:15]} 49. Rc2 {[%emt 0:00:28]} Kg6 {[%emt 0:00:42]} 50. h4 {[%emt 0:01:23]} Rb5 {[%emt 0:01:34]} 51. Rd2 {[%emt 0:01:10]} gxh4+ {[%emt 0:01:10]} 52. Kxh4 {[%emt 0:00:32]} Rg5 {[%emt 0:02:45]} 53. g3 {[%emt 0:00:07]} f5 {[%emt 0:01:24]} 54. Rd6+ {[%emt 0:00:14]} 1-0

[Event "HUN-chT Youth 2019"]
[Site "Budapest"]
[Date "2019.10.28"]
[Round "5.5"]
[White "Giang, Tran Nam"]
[Black "Bernath, Bence"]
[Result "1/2-1/2"]
[ECO "C91"]
[WhiteElo "2028"]
[BlackElo "2004"]
[Annotator "NA RC"]
[PlyCount "107"]
[EventDate "2019.10.26"]
[EventType "team-tourn"]
[EventCountry "HUN"]
[SourceTitle "playchess.com"]
[Source "ChessBase"]
[SourceQuality "1"]
[TimeControl "5400+30"]

1. e4 {[%emt 0:00:00]} e5 {[%emt 0:00:00]} 2. Nf3 {[%emt 0:00:00]} Nc6 {[%emt 0:00:23]} 3. Bb5 {[%emt 0:00:00]} a6 {[%emt 0:00:31]} 4. Ba4 {[%emt 0:00:00]} Nf6 {[%emt 0:00:39]} 5. O-O {[%emt 0:00:00]} Be7 {[%emt 0:00:34]} 6. Re1 {[%emt 0:00:49]} b5 {[%emt 0:00:36]} 7. Bb3 {[%emt 0:00:07]} O-O {[%emt 0:00:37]} 8. d4 {[%emt 0:00:38]} d6 {[%emt 0:00:26]} 9. c3 {[%emt 0:01:48]} Bg4 {[%emt 0:00:33]} 10. Be3 {[%emt 0:00:41]} Bh5 {[%emt 0:00:37]} 11. h3 {[%emt 0:06:21]} exd4 {[%emt 0:01:25]} 12. cxd4 {[%emt 0:00:42]} Re8 {[%emt 0:02:08]} 13. a3 {[%emt 0:02:33]} Na5 {[%emt 0:04:14]} 14. Bc2 {[%emt 0:00:43]} Nc4 {[%emt 0:00:54]} 15. Bc1 {[%emt 0:00:15]} h6 {[%emt 0:06:04]} 16. b3 {[%emt 0:01:55]} Nb6 {[%emt 0:00:46]} 17. Nbd2 {[%emt 0:01:35]} Nfd7 {[%emt 0:05:03]} 18. Nf1 {[%emt 0:06:39]} Bf6 {[%emt 0:02:42]} 19. Bb2 {[%emt 0:02:16]} c5 {[%emt 0:11:44]} 20. Ng3 {[%emt 0:02:31]} Bxf3 {[%emt 0:01:24]} 21. Qxf3 {[%emt 0:00:21]} Bxd4 {[%emt 0:02:19]} 22. Bxd4 {[%emt 0:01:54]} cxd4 {[%emt 0:00:07]} 23. Nf5 {[%emt 0:00:20]} Qf6 {[%emt 0:00:38]} 24. Rad1 {[%emt 0:02:44]} Ne5 {[%emt 0:03:14]} 25. Qg3 {[%emt 0:01:02]} d3 {[%emt 0:01:13]} 26. Bxd3 {[%emt 0:01:43]} Nxd3 {[%emt 0:01:03]} 27. Rxd3 {[%emt 0:00:47]} d5 {[%emt 0:00:29]} 28. Nd6 {[%emt 0:04:04]} Re7 {[%emt 0:21:26]} 29. Rf3 {[%emt 0:04:52]} Qg6 {[%emt 0:01:34]} 30. Nf5 {[%emt 0:01:11]} Rd7 {[%emt 0:02:42]} 31. Qh4 {[%emt 0:03:55]} Qg5 {[%emt 0:01:27]} 32. Qxg5 {[%emt 0:03:19]} hxg5 {[%emt 0:00:10]} 33. exd5 {[%emt 0:01:47]} Nxd5 {[%emt 0:00:14]} 34. Rg3 {[%emt 0:00:34]} f6 {[%emt 0:01:00]} 35. Rd3 {[%emt 0:00:27]} Rad8 {[%emt 0:00:48]} 36. Red1 {[%emt 0:00:57]} Nb6 {[%emt 0:01:43]} 37. Rxd7 {[%emt 0:00:55]} Rxd7 {[%emt 0:01:43]} 38. Rxd7 {[%emt 0:00:09]} Nxd7 {[%emt 0:00:06]} 39. Kf1 {[%emt 0:00:24]} Kf7 {[%emt 0:00:25]} 40. Ke2 {[%emt 0:00:25]} g6 {[%emt 0:00:31]} 41. Ne3 {[%emt 0:00:21]} Nc5 {[%emt 0:01:30]} 42. b4 {[%emt 0:00:36]} Ne6 {[%emt 0:10:03]} 43. Nd5 {[%emt 0:01:57]} f5 {[%emt 0:01:08]} 44. g3 {[%emt 0:01:08]} Ke8 {[%emt 0:00:58]} 45. f4 {[%emt 0:06:39]} gxf4 {[%emt 0:02:17]} 46. Nxf4 {[%emt 0:00:16]} Nxf4+ {[%emt 0:01:20]} 47. gxf4 {[%emt 0:00:02]} Ke7 {[%emt 0:00:17]} 48. Kd3 {[%emt 0:04:20]} Kf6 {[%emt 0:00:17]} 49. Ke3 {[%emt 0:00:06]} Kg7 {[%emt 0:02:11]} 50. Kd4 {[%emt 0:03:36]} Kh6 {[%emt 0:00:25]} 51. Ke5 {[%emt 0:00:15]} Kh5 {[%emt 0:00:27]} 52. Kf6 {[%emt 0:00:06]} Kh6 {[%emt 0:00:11]} 53. Ke5 {[%emt 0:01:07]} Kh5 {[%emt 0:00:23]} 54. Kf6 {[%emt 0:00:35]} 1/2-1/2

[Event "HUN-chT Youth 2019"]
[Site "Budapest"]
[Date "2019.10.28"]
[Round "5.5"]
[White "Giang, Tran Nam"]
[Black "Toth, Nikoletta"]
[Result "*"]
[ECO "C91"]
[WhiteElo "2028"]
[BlackElo "1965"]
[Annotator "NA"]
[PlyCount "24"]
[EventDate "2019.10.26"]
[EventType "team-tourn"]
[EventCountry "HUN"]
[SourceTitle "playchess.com"]
[Source "ChessBase"]
[SourceQuality "1"]
[TimeControl "5400+30"]

1. e4 {[%emt 0:00:00]} e5 {[%emt 0:00:00]} 2. Nf3 {[%emt 0:00:00]} Nc6 {[%emt 0:00:23]} 3. Bb5 {[%emt 0:00:00]} a6 {[%emt 0:00:31]} 4. Ba4 {[%emt 0:00:00]} Nf6 {[%emt 0:00:39]} 5. O-O {[%emt 0:00:00]} Be7 {[%emt 0:00:34]} 6. Re1 {[%emt 0:00:49]} b5 {[%emt 0:00:36]} 7. Bb3 {[%emt 0:00:07]} O-O {[%emt 0:00:37]} 8. d4 {[%emt 0:00:38]} d6 {[%emt 0:00:26]} 9. c3 {[%emt 0:01:48]} Bg4 {[%emt 0:00:33]} 10. Be3 {[%emt 0:00:41]} Bh5 {[%emt 0:00:37]} 11. h3 {[%emt 0:06:21]} exd4 {[%emt 0:01:25]} 12. cxd4 {[%emt 0:00:42]} Re8 {[%emt 0:02:08]} *

[Event "HUN-chT Youth 2019"]
[Site "Budapest"]
[Date "2019.10.28"]
[Round "5.5"]
[White "Toth, Timea"]
[Black "Lazsadi, Blanka Anna"]
[Result "1-0"]
[ECO "C26"]
[WhiteElo "1964"]
[BlackElo "1142"]
[Annotator "NA RC"]
[PlyCount "51"]
[EventDate "2019.10.26"]
[EventType "team-tourn"]
[EventCountry "HUN"]
[SourceTitle "playchess.com"]
[Source "ChessBase"]
[SourceQuality "1"]
[TimeControl "5400+30"]

1. e4 {[%emt 0:00:08]} e5 {[%emt 0:00:05]} 2. Bc4 {[%emt 0:00:06]} Nf6 {[%emt 0:01:09]} 3. Nc3 {[%emt 0:00:11]} Bc5 {[%emt 0:01:59]} 4. d3 {[%emt 0:00:50]} h6 {[%emt 0:01:32]} 5. Be3 {[%emt 0:01:14]} Bxe3 {[%emt 0:01:11]} 6. fxe3 {[%emt 0:00:10]} d6 {[%emt 0:03:10]} 7. Nge2 {[%emt 0:01:11]} O-O {[%emt 0:00:50]} 8. O-O {[%emt 0:02:17]} c6 {[%emt 0:01:12]} 9. Bb3 {[%emt 0:08:52]} Qb6 {[%emt 0:07:22]} 10. d4 {[%emt 0:02:40]} Bg4 {[%emt 0:10:17]} 11. Qd2 {[%emt 0:03:03]} Bxe2 {[%emt 0:01:23]} 12. Qxe2 {[%emt 0:02:01]} exd4 {[%emt 0:00:35]} 13. exd4 {[%emt 0:00:11]} Qxd4+ {[%emt 0:00:12]} 14. Kh1 {[%emt 0:00:22]} Re8 {[%emt 0:02:08]} 15. Rad1 {[%emt 0:04:49]} Qe5 {[%emt 0:02:24]} 16. Qd3 {[%emt 0:08:19]} Rd8 {[%emt 0:05:46]} 17. Qc4 {[%emt 0:05:13]} Rf8 {[%emt 0:03:36]} 18. Qb4 {[%emt 0:07:07]} Ng4 {[%emt 0:01:26]} 19. g3 {[%emt 0:02:28]} Ne3 {[%emt 0:00:08]} 20. Qxb7 {[%emt 0:01:48]} Nd7 {[%emt 0:03:32]} 21. Qxd7 {[%emt 0:01:02]} Nxd1 {[%emt 0:00:37]} 22. Rxd1 {[%emt 0:00:32]} Qh5 {[%emt 0:04:27]} 23. Rf1 {[%emt 0:11:14]} Qc5 {[%emt 0:00:40]} 24. Rxf7 {[%emt 0:03:32]} Rad8 {[%emt 0:03:29]} 25. Rxg7+ {[%emt 0:00:42]} Kh8 {[%emt 0:04:23]} 26. Rh7# {[%emt 0:00:11]} 1-0

[Event "HUN-chT Youth 2019"]
[Site "Budapest"]
[Date "2019.10.28"]
[Round "5.6"]
[White "Buri, Kata"]
[Black "Toth, Kincso"]
[Result "1/2-1/2"]
[ECO "D04"]
[WhiteElo "1646"]
[BlackElo "1556"]
[Annotator "NA RC"]
[PlyCount "119"]
[EventDate "2019.10.26"]
[EventType "team-tourn"]
[EventCountry "HUN"]
[SourceTitle "playchess.com"]
[Source "ChessBase"]
[SourceQuality "1"]
[TimeControl "5400+30"]

1. d4 {[%emt 0:00:00]} d5 {[%emt 0:00:00]} 2. Nf3 {[%emt 0:00:00]} Nf6 {[%emt 0:00:04]} 3. e3 {[%emt 0:00:02]} c5 {[%emt 0:02:10]} 4. b3 {[%emt 0:01:53]} Nc6 {[%emt 0:01:38]} 5. Bb2 {[%emt 0:01:27]} cxd4 {[%emt 0:02:54]} 6. exd4 {[%emt 0:00:40]} Bg4 {[%emt 0:01:19]} 7. Nbd2 {[%emt 0:02:20]} e6 {[%emt 0:02:57]} 8. Be2 {[%emt 0:04:26]} Bd6 {[%emt 0:02:38]} 9. Ne5 {[%emt 0:01:16]} Bxe2 {[%emt 0:01:32]} 10. Qxe2 {[%emt 0:00:31]} Rc8 {[%emt 0:02:47]} 11. f4 {[%emt 0:01:57]} a6 {[%emt 0:22:50]} 12. O-O {[%emt 0:01:27]} O-O {[%emt 0:00:59]} 13. Kh1 {[%emt 0:02:58]} Re8 {[%emt 0:14:03]} 14. Ndf3 {[%emt 0:04:04]} Ne4 {[%emt 0:01:32]} 15. Nd2 {[%emt 0:07:09]} Nxe5 {[%emt 0:06:40]} 16. Nxe4 {[%emt 0:04:19]} Ng6 {[%emt 0:00:55]} 17. Nxd6 {[%emt 0:01:34]} Qxd6 {[%emt 0:00:13]} 18. Qf2 {[%emt 0:01:13]} Qe7 {[%emt 0:03:18]} 19. Rae1 {[%emt 0:03:24]} Qh4 {[%emt 0:02:16]} 20. Qd2 {[%emt 0:04:01]} Ne7 {[%emt 0:02:55]} 21. Re3 {[%emt 0:06:11]} Nf5 {[%emt 0:02:57]} 22. Rh3 {[%emt 0:01:38]} Qg4 {[%emt 0:03:33]} 23. Rhf3 {[%emt 0:04:44]} Qg6 {[%emt 0:02:22]} 24. Qe2 {[%emt 0:04:20]} Nh4 {[%emt 0:04:22]} 25. R3f2 {[%emt 0:03:29]} Nf5 {[%emt 0:06:38]} 26. c4 {[%emt 0:04:05]} dxc4 {[%emt 0:00:47]} 27. bxc4 {[%emt 0:00:21]} Red8 {[%emt 0:02:58]} 28. Rd1 {[%emt 0:00:41]} Rd7 {[%emt 0:02:07]} 29. Qe5 {[%emt 0:02:35]} Rdd8 {[%emt 0:01:47]} 30. c5 {[%emt 0:00:50]} Qg4 {[%emt 0:00:28]} 31. Rfd2 {[%emt 0:01:02]} Rd5 {[%emt 0:00:32]} 32. Qe4 {[%emt 0:01:24]} Qg6 {[%emt 0:01:15]} 33. Qe2 {[%emt 0:00:47]} Qh6 {[%emt 0:00:32]} 34. Qf3 {[%emt 0:01:36]} Nh4 {[%emt 0:00:47]} 35. Qb3 {[%emt 0:00:29]} Rd7 {[%emt 0:00:34]} 36. Rf2 {[%emt 0:02:20]} Rcd8 {[%emt 0:00:25]} 37. Qc3 {[%emt 0:01:53]} Nf5 {[%emt 0:01:02]} 38. c6 {[%emt 0:01:46]} bxc6 {[%emt 0:00:13]} 39. Qxc6 {[%emt 0:00:05]} Rd6 {[%emt 0:00:27]} 40. Qf3 {[%emt 0:00:53]} Nh4 {[%emt 0:00:44]} 41. Qb3 {[%emt 0:02:35]} Nf5 {[%emt 0:00:22]} 42. g3 {[%emt 0:06:05]} Rd5 {[%emt 0:00:27]} 43. Rf3 {[%emt 0:00:28]} Qh5 {[%emt 0:00:34]} 44. Rfd3 {[%emt 0:00:15]} Nd6 {[%emt 0:00:46]} 45. Kg1 {[%emt 0:02:24]} Ne4 {[%emt 0:00:47]} 46. Qc2 {[%emt 0:00:31]} Qg4 {[%emt 0:00:55]} 47. Re1 {[%emt 0:01:00]} Nd6 {[%emt 0:00:15]} 48. Qc6 {[%emt 0:01:16]} Qf5 {[%emt 0:00:48]} 49. Qxa6 {[%emt 0:00:42]} Rb5 {[%emt 0:00:31]} 50. Rb3 {[%emt 0:01:03]} Ra5 {[%emt 0:00:37]} 51. Qb6 {[%emt 0:00:16]} Raa8 {[%emt 0:00:18]} 52. a4 {[%emt 0:00:55]} Nc4 {[%emt 0:00:21]} 53. Qb4 {[%emt 0:00:13]} Na5 {[%emt 0:00:38]} 54. Rbe3 {[%emt 0:00:38]} Rab8 {[%emt 0:00:24]} 55. Qe7 {[%emt 0:01:40]} Re8 {[%emt 0:00:35]} 56. Qd7 {[%emt 0:01:05]} Red8 {[%emt 0:00:11]} 57. Qe7 {[%emt 0:02:28]} Re8 {[%emt 0:00:08]} 58. Qd7 {[%emt 0:00:17]} Red8 {[%emt 0:00:35]} 59. Qe7 {[%emt 0:01:05]} Re8 {[%emt 0:00:14]} 60. Qd7 {[%emt 0:01:05]} 1/2-1/2